fUSD/lending_fUSD_20250128
["ID","MTS","AMOUNT","RATE_DAILY","PERIOD"]
[350658141,1738038640598,-150.0,0.00018784,2]
[350658142,1738038640609,-150.0,0.00018786,2]
[350658143,1738038640620,-150.0,0.00018789,2]
[350658144,1738038640631,-247.21069504,0.0001879,2]
[350658145,1738038640641,-247.21069504,0.0001879,2]
[350658146,1738038640652,-150.0,0.00018791,2]
[350658147,1738038640662,-150.0,0.00018795,2]
[350658148,1738038640672,-150.0,0.00018795,2]
[350658149,1738038640682,-150.0,0.00018795,2]
[350658150,1738038640692,-4254.14556483,0.00018796,2]
[350658151,1738038640702,-654.63,0.00018799,2]
[350658152,1738038640711,-3058.21765013,0.00018799,2]
[350658153,1738038640721,-500.0,0.00018799,2]
[350658154,1738038640731,-525.31896926,0.00018799,2]
[350658155,1738038640740,-882.0,0.000188,2]
[350658156,1738038640750,-395.68707188,0.000188,2]
[350658157,1738038640760,-502099.74424751,0.000188,2]
[350658158,1738038640770,-222.23732049,0.000188,2]
[350658159,1738038640780,-2855782.66759119,0.000188,2]
[350658160,1738038640796,-54677.88767912,0.000188,2]
[350658161,1738038640809,-500.0,0.000188,2]
[350658162,1738038640825,-10985.55453406,0.000188,2]
[350658163,1738038640837,-714.10456423,0.000188,2]
[350658164,1738038640982,-13415.50724323,0.000188,2]
[350658165,1738038640994,-1105.0,0.000188,2]
[350658166,1738038641005,-2705.39819951,0.000188,2]
[350658167,1738038641252,-1959.26000004,0.00018082,2]
[350658168,1738038641263,-40.73999996,0.00018082,2]
[350658169,1738038641272,-150.0,0.00018533,2]
[350658170,1738038641282,-150.0,0.00018544,2]
[350658171,1738038641291,-150.0,0.00018549,2]
[350658172,1738038641300,-150.0,0.0001856,2]
[350658173,1738038641309,-150.0,0.0001856,2]
[350658174,1738038641319,-150.0,0.00018567,2]
[350658175,1738038641335,-150.0,0.00018583,2]
[350658176,1738038641345,-150.0,0.00018586,2]
[350658177,1738038641354,-150.0,0.00018586,2]
[350658178,1738038641363,-150.0,0.00018587,2]
[350658179,1738038641372,-150.0,0.000186,2]
[350658180,1738038641381,-150.0,0.00018602,2]
[350658181,1738038641391,-150.0,0.00018609,2]
[350658182,1738038641401,-150.0,0.00018633,2]
[350658183,1738038641410,-150.0,0.00018634,2]
[350658184,1738038641419,-150.0,0.00018637,2]
[350658185,1738038641428,-150.0,0.00018643,2]
[350658186,1738038641438,-150.0,0.00018645,2]
[350658187,1738038641448,-150.0,0.00018647,2]
[350658188,1738038641458,-150.0,0.00018649,2]
[350658189,1738038641467,-150.0,0.00018669,2]
[350658190,1738038641477,-150.0,0.00018674,2]
[350658191,1738038641486,-150.0,0.00018675,2]
[350658192,1738038641496,-150.0,0.00018693,2]
[350658193,1738038641505,-150.0,0.00018697,2]
[350658194,1738038641514,-150.0,0.00018702,2]
[350658195,1738038641523,-150.0,0.00018702,2]
[350658196,1738038641532,-150.0,0.00018712,2]
[350658197,1738038641542,-150.0,0.00018718,2]
[350658198,1738038641551,-150.0,0.00018724,2]
[350658199,1738038641561,-150.0,0.00018737,2]
[350658200,1738038641576,-2000.0,0.00018751,2]
[350658201,1738038641586,-150.0,0.00018763,2]
[350658202,1738038641595,-150.0,0.00018773,2]
[350658203,1738038641604,-150.0,0.00018775,2]
[350658204,1738038641613,-150.0,0.00018778,2]
[350658205,1738038641623,-150.0,0.00018781,2]
[350658206,1738038641632,-150.0,0.00018787,2]
[350658207,1738038641642,-150.0,0.00018787,2]
[350658208,1738038641651,-150.0,0.00018792,2]
[350658209,1738038641661,-150.0,0.00018793,2]
[350658210,1738038641671,-9662.15143749,0.000188,2]
[350658211,1738038641741,-150.0,0.0001859,2]
[350658212,1738038641752,-150.0,0.00018595,2]
[350658213,1738038641762,-33.58518724,0.000186,2]
[350658214,1738038641773,-116.41481276,0.000186,2]
[350658215,1738038641783,-150.0,0.00018724,2]
[350658216,1738038641792,-150.0,0.00018758,2]
[350658217,1738038641802,-150.0,0.00018765,2]
[350658218,1738038641810,-150.0,0.00018783,2]
[350658219,1738038641823,-150.0,0.0001879,2]
[350658220,1738038641832,-150.0,0.00018792,2]
[350658221,1738038641842,-5231.74420744,0.000188,2]
[350658222,1738038641853,-336.05718565,0.000188,2]
[350658223,1738038641864,-514.8,0.000188,2]
[350658224,1738038641907,-150.0,0.00018537,2]
[350658225,1738038641916,-150.0,0.00018607,2]
[350658226,1738038641926,-150.0,0.00018687,2]
[350658227,1738038641936,-150.0,0.00018697,2]
[350658228,1738038641945,-150.0,0.00018718,2]
[350658229,1738038641955,-185.28,0.000188,2]
[350658248,1738038643734,-3536.28,0.00018213,2]
[350658279,1738038645853,-369.72,0.00018213,2]
[350658280,1738038645863,-139.25,0.00018213,2]
[350658282,1738038646864,-865.75,0.00018213,2]
[350658283,1738038646877,-1065.50804686,0.00018424,2]
[350658284,1738038646887,-150.0,0.00018528,2]
[350658285,1738038646896,-150.0,0.0001853,2]
[350658286,1738038646906,-150.0,0.00018531,2]
[350658287,1738038646915,-150.0,0.00018533,2]
[350658288,1738038646925,-150.0,0.00018533,2]
[350658289,1738038646934,-150.0,0.00018534,2]
[350658290,1738038646944,-150.0,0.00018534,2]
[350658291,1738038646953,-150.0,0.00018535,2]
[350658292,1738038646964,-150.0,0.00018541,2]
[350658293,1738038646972,-150.0,0.00018542,2]
[350658294,1738038646982,-150.0,0.00018542,2]
[350658295,1738038646991,-150.0,0.00018542,2]
[350658296,1738038647000,-150.0,0.00018546,2]
[350658297,1738038647010,-150.0,0.0001855,2]
[350658298,1738038647020,-150.0,0.00018556,2]
[350658299,1738038647029,-150.0,0.00018556,2]
[350658300,1738038647039,-150.0,0.00018567,2]
[350658301,1738038647048,-150.0,0.00018571,2]
[350658302,1738038647057,-150.0,0.00018573,2]
[350658303,1738038647066,-150.0,0.0001858,2]
[350658304,1738038647076,-150.0,0.0001858,2]
[350658305,1738038647085,-150.0,0.00018583,2]
[350658306,1738038647095,-150.0,0.00018585,2]
[350658307,1738038647239,-150.0,0.00018586,2]
[350658308,1738038647249,-150.0,0.0001859,2]
[350658309,1738038647258,-150.0,0.0001859,2]
[350658310,1738038647267,-150.0,0.00018591,2]
[350658311,1738038647276,-150.0,0.00018593,2]
[350658312,1738038647286,-150.0,0.00018598,2]
[350658313,1738038647295,-150.0,0.00018602,2]
[350658314,1738038647305,-150.0,0.00018602,2]
[350658315,1738038647314,-150.0,0.00018603,2]
[350658316,1738038647324,-150.0,0.00018607,2]
[350658317,1738038647334,-150.0,0.00018616,2]
[350658318,1738038647343,-150.0,0.0001862,2]
[350658319,1738038647351,-150.0,0.00018621,2]
[350658320,1738038647361,-150.0,0.00018623,2]
[350658321,1738038647370,-150.0,0.00018629,2]
[350658322,1738038647379,-150.0,0.0001863,2]
[350658323,1738038647388,-150.0,0.00018632,2]
[350658324,1738038647398,-150.0,0.00018637,2]
[350658325,1738038647407,-150.0,0.0001864,2]
[350658326,1738038647416,-150.0,0.00018642,2]
[350658327,1738038647425,-150.0,0.00018644,2]
[350658328,1738038647434,-150.0,0.00018647,2]
[350658329,1738038647443,-150.0,0.00018648,2]
[350658330,1738038647452,-150.0,0.00018648,2]
[350658331,1738038647461,-150.0,0.0001865,2]
[350658332,1738038647470,-150.0,0.00018658,2]
[350658333,1738038647479,-150.0,0.00018662,2]
[350658334,1738038647488,-150.0,0.00018663,2]
[350658335,1738038647497,-150.0,0.00018665,2]
[350658336,1738038647506,-150.0,0.00018665,2]
[350658337,1738038647515,-150.0,0.00018669,2]
[350658338,1738038647524,-150.0,0.00018671,2]
[350658339,1738038647534,-150.0,0.00018673,2]
[350658340,1738038647542,-150.0,0.00018673,2]
[350658341,1738038647552,-150.0,0.00018675,2]
[350658342,1738038647561,-150.0,0.00018676,2]
[350658343,1738038647573,-150.0,0.00018677,2]
[350658344,1738038647582,-150.0,0.00018679,2]
[350658345,1738038647591,-150.0,0.0001868,2]
[350658346,1738038647600,-150.0,0.00018687,2]
[350658347,1738038647609,-150.0,0.00018692,2]
[350658348,1738038647619,-150.0,0.00018693,2]
[350658349,1738038647630,-150.0,0.00018695,2]
[350658350,1738038647639,-150.0,0.00018698,2]
[350658351,1738038647648,-150.0,0.00018707,2]
[350658352,1738038647657,-150.0,0.00018715,2]
[350658353,1738038647666,-150.0,0.00018717,2]
[350658354,1738038647675,-150.0,0.00018717,2]
[350658355,1738038647684,-150.0,0.00018719,2]
[350658356,1738038647693,-150.0,0.00018719,2]
[350658357,1738038647702,-150.0,0.00018719,2]
[350658358,1738038647711,-150.0,0.00018724,2]
[350658359,1738038647720,-150.0,0.00018724,2]
[350658360,1738038647729,-150.0,0.00018726,2]
[350658361,1738038647738,-150.0,0.00018726,2]
[350658362,1738038647750,-150.0,0.00018734,2]
[350658363,1738038647764,-150.0,0.00018737,2]
[350658364,1738038647775,-150.0,0.00018739,2]
[350658365,1738038647784,-150.0,0.00018741,2]
[350658366,1738038647794,-150.0,0.00018743,2]
[350658367,1738038647805,-150.0,0.00018744,2]
[350658368,1738038647815,-150.0,0.00018748,2]
[350658369,1738038647825,-150.0,0.00018751,2]
[350658370,1738038647835,-150.0,0.00018751,2]
[350658371,1738038647845,-150.0,0.00018752,2]
[350658372,1738038647854,-150.0,0.00018753,2]
[350658373,1738038647863,-150.0,0.00018754,2]
[350658374,1738038647873,-150.0,0.00018758,2]
[350658375,1738038647883,-150.0,0.00018759,2]
[350658376,1738038647894,-150.0,0.00018761,2]
[350658377,1738038647903,-150.0,0.00018761,2]
[350658378,1738038647913,-150.0,0.00018769,2]
[350658379,1738038647923,-150.0,0.00018771,2]
[350658380,1738038647932,-150.0,0.00018775,2]
[350658381,1738038647941,-150.0,0.00018788,2]
[350658382,1738038647951,-150.0,0.00018794,2]
[350658383,1738038647961,-150.0,0.00018799,2]
[350658384,1738038647971,-425091.00993481,0.000188,2]
[350658385,1738038647988,-3043.37928412,0.000188,2]
[350658394,1738039045735,-1202.8726147,0.00011826,2]
[350658395,1738039045761,-1202.8726147,0.00011835,2]
[350658396,1738039045784,-200.0,0.00011858,2]
[350658397,1738039045806,-1202.8726147,0.00011866,2]
[350658398,1738039045828,-200.0,0.00011883,2]
[350658399,1738039045851,-1202.8726147,0.00011895,2]
[350658400,1738039045874,-200.0,0.00011908,2]
[350658401,1738039045897,-616.37450053,0.00011919,2]
[350658404,1738039160011,-169.49,0.00010137,2]
[350658405,1738039165705,-200.0,0.00011848,2]
[350658406,1738039165729,-50.0,0.00011853,2]
[350658407,1738039170512,-250.0,0.00011853,2]
[350658471,1738039832041,-785.57299186,0.00011853,2]
[350658472,1738039832051,-200.0,0.00011858,2]
[350658473,1738039832061,-200.0,0.00011867,2]
[350658474,1738039832070,-1085.57299186,0.00011868,2]
[350658475,1738039832079,-200.0,0.00011874,2]
[350658476,1738039832088,-200.0,0.00011875,2]
[350658477,1738039832098,-1085.57299186,0.00011875,2]
[350658478,1738039832107,-1085.57299186,0.00011891,2]
[350658479,1738039832116,-1085.57299186,0.00011909,2]
[350658480,1738039832125,-586.49811417,0.00011919,2]
[350658481,1738039832134,-200.0,0.0001192,2]
[350658482,1738039832143,-192.23,0.00013699,2]
[350658483,1738039832151,-150.0,0.00013728,2]
[350658484,1738039832162,-167.55,0.00013757,2]
[350658485,1738039832171,-823.65,0.00014207,2]
[350658486,1738039832179,-150.0,0.00015068,2]
[350658487,1738039832188,-150.0,0.00015068,2]
[350658488,1738039832197,-158.13844959,0.00015852,2]
[350658489,1738039832206,-1000.0,0.00015866,2]
[350658490,1738039832215,-325.2,0.00015952,2]
[350658491,1738039832224,-250.0,0.00015952,2]
[350658492,1738039832233,-300.0,0.00015973,2]
[350658493,1738039832241,-19461.06,0.00015974,2]
[350658494,1738039832251,-900.0,0.00016,17]
[350658495,1738039832260,-389.28,0.00016025,2]
[350658496,1738039832271,-150.0,0.00016027,2]
[350658497,1738039832281,-638.97,0.00016041,2]
[350658498,1738039832289,-250.0,0.00016123,2]
[350658499,1738039832298,-23900.0,0.00016124,2]
[350658500,1738039832307,-200.0,0.00016154,2]
[350658501,1738039832317,-500.0,0.00016164,2]
[350658502,1738039832327,-500.0,0.00016164,2]
[350658503,1738039832335,-250.0,0.00016179,2]
[350658504,1738039832347,-1500.0,0.00016197,2]
[350658505,1738039832356,-215.32666359,0.000163,2]
[350658506,1738039832365,-215.32666357,0.000163,2]
[350658507,1738039832374,-215.32666357,0.000163,2]
[350658508,1738039832383,-823.65,0.00016471,2]
[350658509,1738039832392,-168.14,0.00016535,2]
[350658510,1738039832401,-900.0,0.00017,18]
[350658511,1738039832411,-192.23,0.00017123,2]
[350658512,1738039832420,-285.87749715,0.00017132,2]
[350658514,1738039832429,-150.0,0.00017147,2]
[350658515,1738039832438,-1561.71,0.00017148,2]
[350658517,1738039832447,-7608.15,0.00017173,2]
[350658519,1738039832455,-7608.15,0.00017178,2]
[350658521,1738039832464,-7608.15,0.00017182,2]
[350658523,1738039832473,-7608.15,0.00017187,2]
[350658525,1738039832482,-7608.15,0.00017191,2]
[350658527,1738039832490,-7608.15,0.00017196,2]
[350658529,1738039832499,-7608.15,0.00017201,2]
[350658531,1738039832508,-7608.15,0.00017205,2]
[350658533,1738039832517,-7608.15,0.0001721,2]
[350658535,1738039832525,-722.76,0.00017213,2]
[350658537,1738039832535,-7608.15,0.00017214,2]
[350658539,1738039832544,-7608.15,0.00017219,2]
[350658541,1738039832553,-7608.15,0.00017223,2]
[350658543,1738039832562,-7608.15,0.00017228,2]
[350658545,1738039832571,-3101.03360028,0.00017232,2]
[350658547,1738039832583,-4507.11639972,0.00017232,2]
[350658549,1738039832592,-7608.15,0.00017237,2]
[350658551,1738039832601,-7608.15,0.00017241,2]
[350658553,1738039832610,-7608.15,0.00017246,2]
[350658555,1738039832620,-7608.15,0.0001725,2]
[350658557,1738039832629,-10022.33,0.00017253,2]
[350658559,1738039832639,-7608.15,0.00017255,2]
[350658561,1738039832648,-7608.15,0.00017259,2]
[350658563,1738039832658,-200.0,0.00017269,2]
[350658565,1738039832668,-285.87749714,0.00017306,2]
[350658567,1738039832677,-1425.713,0.00017342,2]
[350658570,1738039832687,-29673.3,0.00017364,2]
[350658573,1738039832696,-626.57,0.00017414,2]
[350658577,1738039832706,-172.88,0.00017431,2]
[350658578,1738039832715,-420.0,0.00017464,2]
[350658581,1738039832725,-285.87749714,0.0001748,2]
[350658583,1738039832734,-150.0,0.00017549,2]
[350658585,1738039832743,-272.14,0.00017645,30]
[350658586,1738039832753,-285.87749714,0.00017655,2]
[350658588,1738039832762,-500.0,0.00017666,2]
[350658591,1738039832771,-285.87749714,0.00017829,2]
[350658593,1738039832784,-1000.0,0.00017849,2]
[350658595,1738039832793,-680.61,0.00017915,2]
[350658597,1738039832802,-325.2,0.00017946,2]
[350658599,1738039832812,-900.0,0.00018,19]
[350658601,1738039832821,-182.80850111,0.00018,2]
[350658603,1738039832830,-182.80850112,0.00018,2]
[350658605,1738039832839,-182.80850112,0.00018,2]
[350658607,1738039832849,-6027.86495933,0.00018,2]
[350658609,1738039832858,-285.87749714,0.00018003,2]
[350658611,1738039832867,-182.80850111,0.00018082,2]
[350658613,1738039832876,-182.80850112,0.00018082,2]
[350658615,1738039832885,-182.80850112,0.00018082,2]
[350658617,1738039832894,-2000.0,0.00018082,2]
[350658619,1738039832903,-182.80850111,0.00018164,2]
[350658621,1738039832912,-182.80850112,0.00018164,2]
[350658623,1738039832921,-182.80850112,0.00018164,2]
[350658624,1738039832930,-285.87749714,0.00018177,2]
[350658627,1738039832940,-1000.0,0.000182,2]
[350658629,1738039832949,-182.80850111,0.00018247,2]
[350658631,1738039832958,-182.80850112,0.00018247,2]
[350658633,1738039832967,-182.80850112,0.00018247,2]
[350658635,1738039832976,-285.87749714,0.00018352,2]
[350658637,1738039832985,-182.80850111,0.00018356,2]
[350658639,1738039832994,-182.80850112,0.00018356,2]
[350658641,1738039833003,-182.80850112,0.00018356,2]
[350658643,1738039833012,-653.7666728,0.00018424,2]
[350658645,1738039833022,-182.80850111,0.00018438,2]
[350658647,1738039833031,-182.80850112,0.00018438,2]
[350658649,1738039833040,-182.80850112,0.00018438,2]
[350658651,1738039833049,-2020.0,0.00018443,2]
[350658653,1738039833058,-1268.0,0.00018443,2]
[350658655,1738039833068,-637.0,0.00018443,2]
[350658657,1738039833077,-151.075,0.00018443,2]
[350658659,1738039833087,-568.778,0.00018443,2]
[350658661,1738039833097,-1866.0,0.00018443,2]
[350658663,1738039833106,-1262.0,0.00018443,2]
[350658665,1738039833115,-908.0,0.00018443,2]
[350658667,1738039833124,-782.0,0.00018443,2]
[350658669,1738039833133,-2950.0,0.00018443,2]
[350658671,1738039833142,-180.741,0.00018443,2]
[350658673,1738039833151,-538.0,0.00018443,2]
[350658675,1738039833161,-1005.0,0.00018443,2]
[350658677,1738039833170,-3903.0,0.00018443,2]
[350658679,1738039833180,-150.777,0.00018443,2]
[350658681,1738039833190,-2152.0,0.00018494,2]
[350658683,1738039833200,-182.80850111,0.00018521,2]
[350658685,1738039833210,-182.80850112,0.00018521,2]
[350658687,1738039833219,-182.80850112,0.00018521,2]
[350658689,1738039833229,-429.78644604,0.00018523,2]
[350658691,1738039833239,-285.87749714,0.00018526,2]
[350658693,1738039833248,-150.0,0.00018527,2]
[350658695,1738039833258,-1000.0,0.00018527,2]
[350658697,1738039833269,-150.0,0.00018528,2]
[350658699,1738039833280,-1000.0,0.00018532,2]
[350658701,1738039833289,-150.0,0.00018536,2]
[350658703,1738039833298,-150.0,0.00018536,2]
[350658705,1738039833307,-150.0,0.00018542,2]
[350658707,1738039833318,-150.0,0.00018543,2]
[350658709,1738039833327,-150.0,0.00018546,2]
[350658711,1738039833336,-150.0,0.0001855,2]
[350658713,1738039833347,-150.0,0.00018551,2]
[350658715,1738039833356,-150.0,0.00018551,2]
[350658717,1738039833367,-150.0,0.00018552,2]
[350658719,1738039833377,-150.0,0.00018553,2]
[350658721,1738039833387,-150.0,0.00018554,2]
[350658723,1738039833397,-1000.0,0.00018557,2]
[350658725,1738039833406,-150.0,0.00018559,2]
[350658727,1738039833416,-150.0,0.00018562,2]
[350658729,1738039833425,-1000.0,0.00018562,2]
[350658731,1738039833435,-150.0,0.00018563,2]
[350658733,1738039833446,-150.0,0.00018576,2]
[350658735,1738039833456,-150.0,0.00018577,2]
[350658737,1738039833466,-150.0,0.00018579,2]
[350658739,1738039833476,-150.0,0.00018584,2]
[350658741,1738039833485,-150.0,0.00018587,2]
[350658743,1738039833494,-150.0,0.00018589,2]
[350658745,1738039833503,-150.0,0.0001859,2]
[350658747,1738039833513,-150.0,0.00018591,2]
[350658749,1738039833522,-1000.0,0.00018593,2]
[350658751,1738039833531,-150.0,0.00018599,2]
[350658753,1738039833541,-150.0,0.000186,2]
[350658755,1738039833550,-5000.0,0.000186,2]
[350658757,1738039833559,-1000.0,0.00018601,2]
[350658759,1738039833568,-182.80850111,0.00018603,2]
[350658761,1738039833577,-182.80850112,0.00018603,2]
[350658763,1738039833585,-182.80850112,0.00018603,2]
[350658765,1738039833595,-150.0,0.00018603,2]
[350658767,1738039833604,-150.0,0.00018607,2]
[350658769,1738039833615,-1000.0,0.0001861,2]
[350658771,1738039833625,-150.0,0.00018611,2]
[350658773,1738039833634,-150.0,0.00018612,2]
[350658775,1738039833644,-150.0,0.00018616,2]
[350658777,1738039833653,-165.0,0.00018618,2]
[350658779,1738039833662,-166.06,0.00018618,2]
[350658781,1738039833672,-150.0,0.00018623,2]
[350658783,1738039833681,-150.0,0.00018625,2]
[350658785,1738039833690,-150.0,0.00018626,2]
[350658787,1738039833699,-1560.88,0.0001863,2]
[350658789,1738039833709,-1560.88,0.0001863,2]
[350658791,1738039833718,-1560.88,0.0001863,2]
[350658793,1738039833727,-1560.88,0.0001863,2]
[350658795,1738039833736,-1560.88,0.0001863,2]
[350658797,1738039833745,-1560.88,0.0001863,2]
[350658799,1738039833755,-1560.88,0.0001863,2]
[350658801,1738039833764,-1560.88,0.0001863,2]
[350658803,1738039833773,-1560.88,0.0001863,2]
[350658805,1738039833782,-1560.88,0.0001863,2]
[350658807,1738039833791,-3058.21765013,0.0001863,2]
[350658809,1738039833800,-502.63541482,0.0001863,2]
[350658811,1738039833810,-500.0,0.0001863,2]
[350658813,1738039833819,-525.31896926,0.0001863,2]
[350658815,1738039833828,-581.97853616,0.0001863,2]
[350658817,1738039833838,-169.9855456,0.0001863,2]
[350658819,1738039833848,-226.13812223,0.0001863,2]
[350658821,1738039833858,-1000.0,0.0001863,2]
[350658823,1738039833867,-622.67027549,0.0001863,2]
[350658825,1738039833877,-500.65,0.0001863,2]
[350658827,1738039833886,-1802.49,0.0001863,2]
[350658829,1738039833896,-150.0,0.00018632,2]
[350658831,1738039833906,-150.0,0.00018633,2]
[350658833,1738039833915,-150.0,0.00018634,2]
[350658835,1738039833925,-319.57206029,0.00018638,2]
[350658837,1738039833935,-150.0,0.00018638,2]
[350658839,1738039833944,-150.0,0.0001864,2]
[350658841,1738039833954,-1000.0,0.00018643,2]
[350658843,1738039833964,-150.0,0.00018645,2]
[350658845,1738039833973,-150.0,0.00018648,2]
[350658847,1738039833982,-150.0,0.00018648,2]
[350658849,1738039833992,-150.0,0.00018649,2]
[350658851,1738039834001,-500.0,0.0001865,2]
[350658853,1738039834010,-150.0,0.00018652,2]
[350658855,1738039834019,-150.0,0.00018653,2]
[350658857,1738039834028,-150.0,0.00018655,2]
[350658859,1738039834037,-150.0,0.00018661,2]
[350658861,1738039834047,-150.0,0.00018662,2]
[350658863,1738039834056,-156.70719273,0.00018664,2]
[350658865,1738039834065,-150.0,0.00018671,2]
[350658867,1738039834074,-150.0,0.00018672,2]
[350658869,1738039834083,-1000.0,0.00018673,2]
[350658871,1738039834092,-150.0,0.00018674,2]
[350658873,1738039834101,-150.0,0.00018675,2]
[350658875,1738039834111,-150.0,0.00018676,2]
[350658877,1738039834120,-150.0,0.00018677,2]
[350658879,1738039834129,-150.0,0.0001868,2]
[350658881,1738039834138,-2152.0,0.00018684,2]
[350658883,1738039834147,-182.80850111,0.00018685,2]
[350658885,1738039834156,-182.80850112,0.00018685,2]
[350658886,1738039834166,-182.80850112,0.00018685,2]
[350658888,1738039834176,-150.0,0.00018685,2]
[350658907,1738039834352,-150.0,0.00018686,2]
[350658909,1738039834363,-150.0,0.00018686,2]
[350658911,1738039834372,-1000.0,0.00018688,2]
[350658913,1738039834381,-150.0,0.00018691,2]
[350658915,1738039834392,-150.0,0.00018693,2]
[350658917,1738039834401,-150.0,0.00018694,2]
[350658919,1738039834410,-150.0,0.00018695,2]
[350658921,1738039834419,-150.0,0.00018696,2]
[350658923,1738039834429,-150.0,0.00018697,2]
[350658925,1738039834438,-1560.88,0.00018699,2]
[350658927,1738039834447,-518.80559807,0.00018699,2]
[350658929,1738039834456,-500.0,0.00018699,2]
[350658931,1738039834466,-150.0,0.00018699,2]
[350658933,1738039834475,-185.0071,0.000187,2]
[350658935,1738039834484,-668.0,0.000187,2]
[350658937,1738039834492,-915.8085,0.000187,2]
[350658939,1738039834501,-3022.40752877,0.000187,2]
[350658941,1738039834511,-150.0,0.000187,2]
[350658943,1738039834519,-265.77237662,0.000187,31]
[350658945,1738039834533,-22.45762338,0.000187,31]
[350658947,1738039834542,-288.23,0.000187,31]
[350658949,1738039834551,-288.23,0.000187,31]
[350658950,1738039834560,-288.23,0.000187,31]
[350658951,1738039834569,-288.23,0.000187,31]
[350658952,1738039834578,-288.23,0.000187,31]
[350658953,1738039834587,-288.23,0.000187,31]
[350658954,1738039834596,-288.23,0.000187,31]
[350658955,1738039834605,-288.23,0.000187,31]
[350658956,1738039834614,-288.23,0.000187,31]
[350658957,1738039834623,-288.23,0.000187,31]
[350658958,1738039834633,-288.23,0.000187,31]
[350658959,1738039834642,-288.23,0.000187,31]
[350658961,1738039834651,-288.23,0.000187,31]
[350658963,1738039834660,-288.23,0.000187,31]
[350658965,1738039834668,-288.23,0.000187,31]
[350658966,1738039834677,-285.87749714,0.000187,2]
[350658969,1738039834687,-150.0,0.00018701,2]
[350658970,1738039834696,-150.0,0.00018703,2]
[350658972,1738039834705,-150.0,0.00018703,2]
[350658974,1738039834714,-1000.0,0.00018703,2]
[350658977,1738039834723,-1000.0,0.00018704,2]
[350658978,1738039834733,-152.63335777,0.00018704,2]
[350658980,1738039834742,-150.0,0.00018704,2]
[350658982,1738039834751,-150.0,0.00018706,2]
[350658985,1738039834762,-150.0,0.00018707,2]
[350658987,1738039834771,-150.0,0.00018708,2]
[350658988,1738039834780,-150.0,0.00018709,2]
[350658990,1738039834789,-150.0,0.0001871,2]
[350658992,1738039834798,-150.0,0.00018711,2]
[350658995,1738039834808,-150.0,0.00018711,2]
[350658996,1738039834817,-150.0,0.00018714,2]
[350658999,1738039834827,-150.0,0.00018715,2]
[350659001,1738039834836,-150.0,0.00018718,2]
[350659002,1738039834845,-1000.0,0.00018718,2]
[350659004,1738039834854,-150.0,0.0001872,2]
[350659006,1738039834863,-150.0,0.00018722,2]
[350659008,1738039834872,-150.0,0.00018726,2]
[350659011,1738039834882,-150.0,0.0001873,2]
[350659013,1738039834891,-150.0,0.00018732,2]
[350659015,1738039834901,-150.0,0.00018734,2]
[350659017,1738039834910,-150.0,0.00018734,2]
[350659019,1738039834919,-823.65,0.00018734,2]
[350659021,1738039834928,-150.0,0.00018735,2]